[Event "Festival Groningen-A 2024"]
[Site "Groningen"]
[Date "2024.12.24"]
[Round "4.6"]
[White "Maatman, Nick"]
[Black "Van Foreest, Machteld"]
[Result "1-0"]
[ECO "E04"]
[WhiteElo "2375"]
[BlackElo "2309"]
[Annotator "TA"]
[PlyCount "93"]
[EventDate "2024.12.21"]
[EventType "swiss"]
[EventCountry "NED"]
[SourceTitle "playchess.com"]
[Source "ChessBase"]
[SourceQuality "1"]
[TimeControl "40/5400+30:1800+30"]

{[%evp 19,93,63,57,47,32,30,47,19,18,27,33,25,36,0,15,19,18,44,89,84,102,104,140,145,154,141,147,112,144,143,142,151,208,214,211,208,221,224,230,215,268,262,337,336,377,384,385,386,394,385,393,385,456,465,564,560,554,549,607,638,645,612,630,658,645,644,679,641,687,676,1078,1083,972,981,821,471]} 1. Nf3 {[%emt 0:04:58]} Nf6 {[%emt 0:01:58]} 2. g3 {[%emt 0:00:12]} e6 {[%emt 0:00:45]} 3. Bg2 {[%emt 0:00:17]} d5 {[%emt 0:00:06][%cal Bd7d5,Bd5c4][%mdl 32]} 4. d4 {[%emt 0:01:10]} c5 {[%emt 0:05:40]} 5. c4 {[%emt 0:04:16]} dxc4 {[%emt 0:12:51]} 6. O-O {[%emt 0:00:58]} Nc6 {[%emt 0:04:10]} 7. Ne5 {[%emt 0:00:42]} Nxe5 {[%emt 0:19:14]} 8. dxe5 {[%emt 0:00:46]} Nd5 {[%emt 0:00:07]} 9. Na3 {[%emt 0:07:28][%cal Bb1a3,Ba3c4,Bc4d6][%mdl 32]} Be7 {[%emt 0:10:28]} 10. Nxc4 {[%emt 0:01:03]} O-O {[%emt 0:00:04]} 11. Nd6 {[%emt 0:03:14]} Qc7 {[%emt 0:02:56]} 12. Bxd5 {[%emt 0:14:29]} (12. Qd3 {is interesting.} Bd7 13. Rd1 Rad8 14. e4) 12... exd5 {[%emt 0:00:06]} 13. Nxc8 {[%emt 0:00:03]} Raxc8 {[%emt 0:00:15]} 14. Qxd5 {[%emt 0:00:05]} Rfd8 {[%emt 0:00:22]} 15. Qe4 {[%emt 0:00:27]} Rd4 {[%emt 0:00:26]} 16. Qe3 {[%emt 0:10:41]} Qc6 {[%emt 0:01:37]} 17. Qf3 {[%emt 0:30:00]} Qxf3 {[%emt 0:04:46]} 18. exf3 {[%emt 0:00:05]} b5 {[%emt 0:00:02]} 19. Be3 {[%emt 0:01:29]} Rd5 {[%emt 0:00:09]} 20. f4 {[%emt 0:00:19]} a5 {[%emt 0:01:10]} 21. Rfd1 {[%emt 0:01:07]} Rcd8 {[%emt 0:00:08]} 22. Rxd5 {[%emt 0:00:10]} Rxd5 $16 {[%emt 0:00:02][%mdl 4096] Endgame KRB-KRB. White is a pawn up.} 23. Rc1 {[%emt 0:03:46]} f6 {[%emt 0:05:36]} 24. exf6 {[%emt 0:00:16]} Bxf6 {[%emt 0:00:18]} 25. b3 {[%emt 0:01:15]} ({Don't do} 25. Bxc5 Bxb2 26. Rc2 Bf6 $14) 25... Bd4 {[%emt 0:00:57]} (25... Be7 $16 {keeps fighting.} 26. g4 g6) 26. Bxd4 $18 {[%emt 0:01:45]} cxd4 {[%emt 0:00:02][%cal Bc5d4,Bd4d3][%mdl 32] KR-KR. White is a pawn up.} 27. Kf1 {[%emt 0:00:10]} d3 {[%emt 0:06:45]} 28. Rc8+ {[%emt 0:00:23]} Kf7 {[%emt 0:00:01] and ...d2 should not be overlooked} 29. Ke1 {[%emt 0:00:05]} g5 {[%emt 0:00:02]} 30. fxg5 {[%emt 0:06:02]} Re5+ {[%emt 0:00:04]} 31. Kd2 {[%emt 0:00:03]} Re2+ {[%emt 0:00:02]} 32. Kxd3 {[%emt 0:00:03]} Rxa2 {[%emt 0:02:01]} 33. Rc2 {[%emt 0:02:20]} Ra3 {[%emt 0:00:09]} 34. Rb2 {[%emt 0:00:07]} Kg6 {[%emt 0:02:25]} 35. f4 {[%emt 0:00:25]} Kf5 {[%emt 0:00:17]} 36. Kd4 {[%emt 0:00:42]} Ra1 {[%emt 0:02:24]} 37. Kc5 {[%emt 0:02:11]} b4 {[%emt 0:00:03]} 38. Re2 {[%emt 0:03:09]} Rc1+ {[%emt 0:01:40]} 39. Kb5 {[%emt 0:00:10]} Rb1 {[%emt 0:00:19]} 40. Re3 {[%emt 0:01:22]} Ra1 {[%emt 0:01:59]} 41. Re5+ {[%emt 0:32:02]} Kg6 {[%emt 0:30:11]} 42. Re6+ {[%emt 0:00:00]} Kg7 {[%emt 0:00:00]} 43. Re7+ {[%emt 0:00:00]} Kg8 {[%emt 0:00:00]} 44. Ra7 {[%emt 0:00:00]} Ra3 {[%emt 0:00:00]} 45. Kc4 {[%emt 0:00:00]} Ra2 {[%emt 0:00:00]} 46. Kd4 {[%emt 0:00:00]} (46. f5 Rxh2 47. Kd4 (47. Rxa5 Rg2 $18) 47... Re2) 46... Rxh2 {[%emt 0:00:00]} 47. Rxa5 {[%emt 0:00:00]} 1-0

[Event "Festival Groningen-A 2024"]
[Site "Groningen"]
[Date "2024.12.24"]
[Round "4.7"]
[White "De Jong, Migchiel"]
[Black "Poetsch, Hagen"]
[Result "0-1"]
[ECO "E60"]
[WhiteElo "2275"]
[BlackElo "2491"]
[Annotator "TA"]
[PlyCount "98"]
[EventDate "2024.12.21"]
[EventType "swiss"]
[EventCountry "NED"]
[SourceTitle "playchess.com"]
[Source "ChessBase"]
[SourceQuality "1"]
[TimeControl "40/5400+30:1800+30"]

{[%evp 16,98,21,12,33,31,28,31,21,0,0,0,0,0,0,0,1,-21,-25,-27,-29,-38,-35,-25,-29,-38,-37,-31,-36,-39,-53,-57,-18,-70,-63,-61,-58,-56,-45,-33,-33,-33,-33,-97,-65,-103,-102,-96,-56,-79,-66,-54,-55,-59,-65,-77,-31,-31,-24,-31,-31,-31,-31,-31,-31,-142,-142,-142,0,-4,-4,-8,-8,-8,-8,-970,-963,-29974,-29975,-29973,-29976,-29976,-29976,-29975,-29975]} 1. Nf3 {[%emt 0:00:22]} d5 {[%emt 0:00:14]} 2. e3 {[%emt 0:01:23]} Nf6 {[%emt 0:00:07]} 3. b3 {[%emt 0:02:28]} g6 {[%emt 0:01:18]} 4. Bb2 {[%emt 0:01:10]} Bg7 {[%emt 0:00:04]} 5. c4 {[%emt 0:01:01]} dxc4 {[%emt 0:00:24]} 6. Bxc4 {[%emt 0:01:23]} O-O {[%emt 0:02:42]} 7. O-O {[%emt 0:00:21]} c5 {[%emt 0:00:37]} 8. d4 {[%emt 0:03:10]} cxd4 {[%emt 0:01:07]} 9. Nxd4 {[%emt 0:01:21]} Nbd7 {[%emt 0:04:38]} 10. Nd2 {[%emt 0:03:06]} Ne5 {[%emt 0:04:47]} 11. Be2 {[%emt 0:03:01]} Bg4 {[%emt 0:09:47] White is slightly better.} 12. h3 {[%emt 0:04:10]} Bxe2 {[%emt 0:00:14]} 13. Qxe2 {[%emt 0:00:08][%cal Od4f5]} Rc8 {[%emt 0:06:01]} 14. Rac1 {[%emt 0:08:11]} Qa5 {[%emt 0:01:04]} 15. a3 {[%emt 0:01:18]} Nd5 {[%emt 0:01:11]} 16. f4 {[%emt 0:05:19] Rxc8 would now be deadly.} Nd7 {[%emt 0:00:58]} 17. Nc4 {[%emt 0:01:24]} Qa6 {[%emt 0:01:11]} 18. Qf3 {[%emt 0:14:36]} N5b6 {[%emt 0:08:15]} 19. Nxb6 {[%emt 0:04:53]} Qxb6 {[%emt 0:00:08]} 20. b4 {[%emt 0:02:31]} e5 {[%emt 0:04:28]} 21. Rxc8 {[%emt 0:07:59]} Rxc8 {[%emt 0:00:11]} 22. fxe5 {[%emt 0:00:41]} Nxe5 {[%emt 0:00:08]} 23. Qd5 {[%emt 0:32:04]} a5 {[%emt 0:14:13]} 24. Kh1 {[%emt 0:00:30]} (24. Qxa5 $11 Qxa5 25. bxa5) 24... axb4 {[%emt 0:01:51]} (24... a4 {simplifies} 25. Ba1 h5 26. Qb5 Qa6) 25. axb4 {[%emt 0:00:00]} Qxb4 {[%emt 0:01:45]} 26. Nf5 $1 {[%emt 0:00:00]} gxf5 {[%emt 0:01:57]} (26... Qxb2 27. Ne7+ Kh8 28. Nxc8 $18) (26... Qc5 {simplifies} 27. Qxc5 Rxc5 28. Bd4 Rb5) 27. Bxe5 {[%emt 0:00:00]} Qc5 {[%emt 0:02:16]} 28. Qxc5 {[%emt 0:00:00]} Rxc5 $15 {[%emt 0:00:05][%mdl 4096] Endgame. KRB-KRB} 29. Bf4 {[%emt 0:00:00]} ({White should play} 29. Bd4 $15 Rd5 30. Bxg7 Kxg7 31. Rf4) 29... Bb2 {[%emt 0:06:31]} 30. Rf2 {[%emt 0:00:00]} Bc3 {[%emt 0:00:48]} 31. Ra2 {[%emt 0:00:00]} Kg7 {[%emt 0:01:37]} 32. Ra8 {[%emt 0:00:00]} Be5 {[%emt 0:08:47]} 33. Bxe5+ {[%emt 0:00:00]} Rxe5 {[%emt 0:00:06] KR-KR} 34. Rb8 {[%emt 0:00:00]} Rb5 {[%emt 0:00:39]} 35. Kh2 {[%emt 0:00:00] [#]} Rb1 {[%emt 0:04:12]} (35... Rb3 $1 $17) 36. Kg3 {[%emt 0:00:00]} b5 {[%emt 0:00:11]} 37. Rb6 {[%emt 0:00:00]} f6 {[%emt 0:05:39]} 38. Kf4 {[%emt 0:01:14]} Kg6 {[%emt 0:00:11]} 39. Rb8 {[%emt 0:00:47]} b4 {[%emt 0:01:59]} 40. Rg8+ {[%emt 0:00:34]} ({White should try} 40. Kg3 $15) 40... Kf7 $17 {[%emt 0:03:22]} 41. Rb8 {[%emt 0:30:23] [#]} Kg6 {[%emt 0:31:01]} (41... Ke6 $1 $17 {With the idea ...b3.} 42. Rb5 b3) 42. Rg8+ $11 {[%emt 0:00:53]} Kh5 {[%emt 0:02:26]} 43. Kxf5 {[%emt 0:03:08]} b3 {[%emt 0:00:36]} 44. Rb8 {[%emt 0:02:17]} b2 {[%emt 0:00:24] ( -> ...Rf1+)} 45. Ke4 $2 {[%emt 0:00:00][%mdl 8192] White does not recover from this.} (45. Ke6 $11) 45... Kh4 $19 {[%emt 0:00:00] White must now prevent ...Kg3.} 46. Kd3 {[%emt 0:00:00]} Rd1+ {[%emt 0:00:00] Black mates.} 47. Kc2 {[%emt 0:00:00] [#]} b1=Q+ $1 {[%emt 0:00:00][%mdl 512]} 48. Rxb1 {[%emt 0:00:00]} Rxb1 {[%emt 0:00:00]} 49. Kxb1 {[%emt 0:00:00]} Kg3 {[%emt 0:00:00] Weighted Error Value: White=0.43/Black=0.12 (very precise) .  Loses game:     	White=1     	---        Mistake:       	White=3     	Black=2      Inaccurate:     	White=2     	Black=3      OK:         	White=15    	Black=13     Best:        	---       	Black=2      Strong:       	White=1     	---} 0-1

[Event "Festival Groningen-A 2024"]
[Site "Groningen"]
[Date "2024.12.24"]
[Round "4.8"]
[White "Mitusov, Semen"]
[Black "Grooten, Tommy"]
[Result "1-0"]
[ECO "B81"]
[WhiteElo "2465"]
[BlackElo "2153"]
[Annotator "TA"]
[PlyCount "51"]
[EventDate "2024.12.21"]
[EventType "swiss"]
[EventCountry "NED"]
[SourceTitle "playchess.com"]
[Source "ChessBase"]
[SourceQuality "1"]
[TimeControl "40/5400+30:1800+30"]

{[%evp 16,51,30,34,23,23,52,37,35,25,25,33,29,25,27,29,29,33,19,22,38,21,21,25,22,20,18,12,20,21,16,15,19,16,26,23,622,615]} 1. e4 {[%emt 0:00:03]} c5 {[%emt 0:00:03]} 2. Nf3 {[%emt 0:00:18]} e6 {[%emt 0:00:07]} 3. d4 {[%emt 0:00:27]} cxd4 {[%emt 0:00:05]} 4. Nxd4 {[%emt 0:00:05]} Nf6 {[%emt 0:00:05]} 5. Nc3 {[%emt 0:01:07]} d6 {[%emt 0:00:12]} 6. g4 {[%emt 0:01:28]} h6 {[%emt 0:00:46]} 7. Rg1 {[%emt 0:02:45]} Nc6 {[%emt 0:00:12]} 8. h4 {[%emt 0:08:17]} d5 {[%emt 0:00:17]} 9. exd5 {[%emt 0:00:11]} Nxd5 {[%emt 0:00:08]} 10. Nxd5 {[%emt 0:00:05]} exd5 {[%emt 0:00:06]} 11. Be3 {[%emt 0:00:33]} Qxh4 {[%emt 0:00:13] White is slightly better.} 12. Qf3 {[%emt 0:01:19]} Nxd4 {[%emt 0:00:10]} 13. Bxd4 {[%emt 0:00:06] [#] Threatens to win with Bb5+.} Qe7+ {[%emt 0:00:05]} 14. Be2 {[%emt 0:00:07][%cal Oe1c1] next 0-0-0! is good for White. Active counter play!} Qe4 {[%emt 0:00:06]} 15. O-O-O {[%emt 0:01:55] Strongly threatening Bb5+.} Qxf3 {[%emt 0:00:18]} 16. Bxf3 {[%emt 0:00:02]} Be6 {[%emt 0:00:10]} 17. Rge1 {[%emt 0:00:04]} Kd7 {[%emt 0:00:34]} 18. Be3 {[%emt 0:02:17]} Bd6 {[%emt 0:37:22]} 19. Bxd5 {[%emt 0:02:37]} Bxd5 {[%emt 0:00:53]} ({Reject} 19... Bxg4 20. Rd4 h5 21. Ra4 $16 (21. Bxf7 Raf8 $14) (21. Bxb7 Rae8 $16)) 20. Rxd5 {[%emt 0:00:06]} Kc6 {[%emt 0:00:52]} 21. Red1 {[%emt 0:01:31]} Rad8 {[%emt 0:04:38]} 22. Ra5 {[%emt 0:19:38]} (22. Bxa7 $2 {loses.} Bf4+ 23. Be3 Bxe3+ (23... Rxd5 $2 24. Bxf4 Rxd1+ 25. Kxd1 $19) 24. fxe3 Rxd5 $19) 22... a6 {[%emt 0:11:07]} 23. Rd4 {[%emt 0:05:56]} Rhe8 {[%emt 0:03:33]} 24. c3 {[%emt 0:03:05]} Kc7 {[%emt 0:10:07]} 25. Kc2 {[%emt 0:03:35]} Be5 $2 {[%emt 0:07:35][%mdl 8192] [#]} (25... Rd7 $11) 26. Rc5+ $1 {[%emt 0:01:54] Weighted Error Value: White=0.02 (flawless) /Black=0.52.  Loses game:     	---       	Black=1      Inaccurate:     	---       	Black=1      OK:         	White=8     	Black=9      Best:        	---       	Black=2      Strong:       	White=1     	---} ({Not} 26. Rxd8 Kxd8 27. c4 Bf6 $11) 1-0

[Event "Festival Groningen-A 2024"]
[Site "Groningen"]
[Date "2024.12.24"]
[Round "4.9"]
[White "Madularea, David"]
[Black "Labruyere, Roger"]
[Result "1-0"]
[ECO "C10"]
[WhiteElo "2245"]
[BlackElo "2344"]
[Annotator "TA"]
[PlyCount "129"]
[EventDate "2024.12.21"]
[EventType "swiss"]
[EventCountry "NED"]
[SourceTitle "playchess.com"]
[Source "ChessBase"]
[SourceQuality "1"]
[TimeControl "40/5400+30:1800+30"]

{[%evp 40,129,65,0,0,0,0,-284,-309,-296,-297,-290,-15,-14,31,35,29,49,122,147,128,0,0,0,0,0,0,3,8,0,0,37,27,0,26,0,82,0,90,64,70,105,175,115,115,115,512,512,512,495,1609,1405,2137,9202,29964,29963,29983,29978,29974,29966,12791,12791,6070,9970,5065,4133,29979,29980,29980,2263,12798,2256,29989,29990,29990,29991,29993,29994,29994,29995,29995,29995,29995,29996,29996,29996,29996,29997,29997,29998,29998,29999]} 1. e4 {[%emt 0:00:04]} e6 {[%emt 0:00:11]} 2. d4 {[%emt 0:00:03]} d5 {[%emt 0:00:04]} 3. Nc3 {[%emt 0:00:03]} dxe4 {[%emt 0:00:36]} 4. Nxe4 {[%emt 0:00:05]} Nf6 {[%emt 0:00:07]} 5. Nxf6+ {[%emt 0:03:03]} gxf6 {[%emt 0:00:53]} 6. Nf3 {[%emt 0:00:44]} b6 {[%emt 0:01:45]} 7. Bb5+ {[%emt 0:04:19]} c6 {[%emt 0:00:31]} 8. Bd3 {[%emt 0:00:05]} Bb7 {[%emt 0:00:04]} 9. Qe2 {[%emt 0:00:48]} Qc7 {[%emt 0:02:29]} 10. Be3 {[%emt 0:07:12]} Nd7 {[%emt 0:02:17]} 11. a4 {[%emt 0:05:55]} Bd6 {[%emt 0:02:01]} 12. a5 {[%emt 0:07:14]} bxa5 {[%emt 0:02:56]} 13. Bd2 {[%emt 0:02:32]} a4 {[%emt 0:09:31]} 14. Rxa4 {[%emt 0:02:55]} h5 {[%emt 0:01:38]} 15. b4 {[%emt 0:11:29]} Nb6 {[%emt 0:02:29]} 16. Ra2 {[%emt 0:00:49]} Nd5 {[%emt 0:01:06]} 17. Rb2 {[%emt 0:00:26]} Bf4 {[%emt 0:07:07]} 18. c4 {[%emt 0:03:24]} Bxd2+ {[%emt 0:00:15]} 19. Qxd2 {[%emt 0:02:48]} Nf4 {[%emt 0:00:12]} 20. Bf1 {[%emt 0:02:11]} Rd8 {[%emt 0:12:27]} (20... a5 $11) 21. Qc3 {[%emt 0:03:50]} ({White should try} 21. c5 $14) 21... Rg8 $11 {[%emt 0:10:54]} 22. g3 {[%emt 0:01:44]} c5 $1 {[%emt 0:02:03]} 23. gxf4 $2 {[%emt 0:03:27][%mdl 8192]} (23. bxc5 $1 $11 {and White stays safe.} Bxf3 24. Qxf3 Qa5+ 25. Kd1 (25. Rd2 $2 Rxd4 26. Qa8+ Ke7 $19) 25... Rxd4+ 26. Kc2 Rd2+ 27. Kb1 Rxb2+ 28. Kxb2) 23... cxd4 $19 {[%emt 0:00:12]} 24. Qd3 {[%emt 0:01:14]} Qxf4 {[%emt 0:00:11]} 25. Rb3 {[%emt 0:01:07]} Be4 $2 {[%emt 0:01:15]} ({Black should try} 25... Qc1+ $19 26. Qd1 Qxd1+ 27. Kxd1 d3) 26. Qd2 $11 {[%emt 0:00:23]} Qxf3 {[%emt 0:07:44]} 27. Rxf3 {[%emt 0:00:05]} Bxf3 {[%emt 0:00:03]} 28. Bg2 $1 {[%emt 0:03:23]} Bxg2 {[%emt 0:00:41]} (28... Rxg2 $14 29. Qf4 Bb7) 29. Rg1 $16 {[%emt 0:00:06]} Rg4 {[%emt 0:00:07]} 30. f4 {[%emt 0:01:16]} (30. Qa2 $16) 30... Be4 $1 $11 {[%emt 0:00:32]} 31. Rxg4 {[%emt 0:00:13]} hxg4 {[%emt 0:00:02]} 32. Qa2 {[%emt 0:01:04]} d3 {[%emt 0:00:41]} 33. Kd2 {[%emt 0:00:12]} (33. Qxa7 d2+ 34. Kf2 d1=Q (34... d1=B 35. b5 $19) 35. Qe3 Rd2+ (35... Qd2+ $2 36. Qxd2 Rxd2+ 37. Ke3 $19) 36. Kg3 Qf1 (36... Rg2+ 37. Kh4 Rxh2+ 38. Kg3 Rg2+ 39. Kh4 Qh1+ 40. Qh3 Qxh3#) (36... Rd3 37. Kf2 Rd2+ 38. Kg3 Qf1 39. Kxg4 Bf5+ 40. Kh4 Rxh2+ 41. Kg3 Rh3#) 37. Kh4 Rxh2+ (37... Rd3 38. Kh5 Qh3+ 39. Qxh3 Rxh3+ 40. Kxg4 Bf5#) 38. Kxg4 Qg2+ 39. Qg3 Bf5#) 33... Rd4 {[%emt 0:20:30]} 34. Qa4+ {[%emt 0:10:14]} (34. Qxa7 Rxc4 35. Ke3 (35. Qb8+ $2 Ke7 $19) 35... Rc1 $19 (35... Rxb4 36. Qa5 $11)) (34. Qa6 $5 Kf8 $8 35. Qc8+ (35. Qxa7 $2 Rxc4 36. Ke3 Rc1 $19) 35... Kg7 36. Qc5 $17) 34... Kf8 {[%emt 0:00:14]} 35. Qb5 {[%emt 0:00:06]} (35. Qxa7 $2 Rxc4 36. Ke3 Rc1 $19 (36... Rxb4 $2 37. Qc5+ Kg7 38. Qxb4 $18)) 35... Kg7 {[%emt 0:04:12]} 36. Qc5 $1 {[%emt 0:00:14]} Rd7 {[%emt 0:02:48]} 37. b5 {[%emt 0:01:05]} Kg6 {[%emt 0:04:46]} (37... Bf5 $11) 38. Qe3 {[%emt 0:11:32]} (38. Qf8 $16) 38... Kf5 {[%emt 0:00:33]} (38... Bf5 $11 {keeps the balance.}) 39. h3 {[%emt 0:00:13]} gxh3 {[%emt 0:01:00]} 40. Qxh3+ {[%emt 0:00:03]} Kg6 {[%emt 0:00:08]} (40... Kxf4 $16 {keeps fighting.} 41. Qh4+ Kf3 (41... Ke5 $2 42. c5 $18) 42. Qxf6+ Bf5) 41. Qg4+ {[%emt 0:30:28]} (41. c5 $18 Rd5 42. Qe3 (42. Qg4+ Kh7 $16)) 41... Kh7 $16 {[%emt 0:30:31]} 42. Qg1 {[%emt 0:05:15]} Bf5 $2 {[%emt 0:00:00][%mdl 8192]} (42... Bg6 $16 {is a better chance.} 43. c5 Rd5) 43. c5 $18 {[%emt 0:00:00]} Rd5 {[%emt 0:00:00]} 44. Qc1 {[%emt 0:00:00]} Bg6 {[%emt 0:00:00]} (44... Kg7 $142 45. c6 Rxb5) 45. c6 $18 {[%emt 0:00:00]} Rxb5 {[%emt 0:00:00]} 46. c7 {[%emt 0:00:00]} Rh5 {[%emt 0:00:00]} 47. Qg1 {[%emt 0:00:00]} (47. c8=B $2 {perishes.} Rh2+ 48. Ke3 d2 $19) 47... a5 {[%emt 0:03:47]} 48. c8=Q {[%emt 0:00:00]} ({Weaker is} 48. c8=B a4 $16) 48... Kg7 {[%emt 0:00:16]} 49. Qg2 {[%emt 0:00:00]} Rh8 {[%emt 0:01:53]} 50. Qc3 {[%emt 0:00:00]} Rh5 {[%emt 0:00:51]} 51. Qxd3 {[%emt 0:00:00]} Rc5 {[%emt 0:00:38]} 52. Kd1 {[%emt 0:00:00]} a4 {[%emt 0:00:33]} 53. Qd6 {[%emt 0:00:00]} Ra5 {[%emt 0:00:34]} 54. Qd8 {[%emt 0:00:00]} (54. f5 $142 Rd5+ 55. Qdxd5 exd5 56. fxg6 fxg6 57. Qxd5 f5 58. Ke2 Kf8 59. Qa8+ Ke7 60. Qxa4) 54... Rb5 {[%emt 0:00:32]} 55. Qga8 {[%emt 0:00:00]} Rb1+ {[%emt 0:00:12]} 56. Kd2 {[%emt 0:00:00]} Rb2+ {[%emt 0:00:02]} 57. Kc3 {[%emt 0:00:00]} Rc2+ {[%emt 0:00:11]} 58. Kb4 {[%emt 0:00:00]} Rb2+ {[%emt 0:01:17]} 59. Ka5 {[%emt 0:00:00]} Bh7 {[%emt 0:00:27]} 60. Qf8+ {[%emt 0:00:00]} Kg6 {[%emt 0:00:08]} 61. Qe4+ {[%emt 0:00:00]} f5 {[%emt 0:00:08]} 62. Qe5 {[%emt 0:00:00]} Kh5 {[%emt 0:01:18]} 63. Qxb2 {[%emt 0:00:00]} Bg6 {[%emt 0:00:03]} 64. Qg2 {[%emt 0:00:00]} Kh4 {[%emt 0:00:11]} 65. Qh8+ {[%emt 0:00:00]} 1-0

[Event "Festival Groningen-A 2024"]
[Site "Groningen"]
[Date "2024.12.24"]
[Round "4.10"]
[White "Van der Hagen, Loek"]
[Black "Weber, Samuel"]
[Result "1/2-1/2"]
[ECO "B15"]
[WhiteElo "2315"]
[BlackElo "2263"]
[Annotator "RC"]
[PlyCount "67"]
[EventDate "2024.12.21"]
[EventType "swiss"]
[EventCountry "NED"]
[SourceTitle "playchess.com"]
[Source "ChessBase"]
[SourceQuality "1"]
[TimeControl "40/5400+30:1800+30"]

1. e4 {[%emt 0:00:09]} c6 {[%emt 0:00:43]} 2. Nc3 {[%emt 0:00:09]} d5 {[%emt 0:00:06]} 3. Nf3 {[%emt 0:00:06]} g6 {[%emt 0:00:40]} 4. d4 {[%emt 0:01:02]} dxe4 {[%emt 0:00:10]} 5. Nxe4 {[%emt 0:00:07]} Nf6 {[%emt 0:00:16]} 6. Nxf6+ {[%emt 0:00:06]} exf6 {[%emt 0:00:08]} 7. Bc4 {[%emt 0:00:07]} Bg7 {[%emt 0:00:13]} 8. Qe2+ {[%emt 0:00:12]} Qe7 {[%emt 0:00:07]} 9. Qxe7+ {[%emt 0:00:38]} Kxe7 {[%emt 0:00:51]} 10. a4 {[%emt 0:00:09]} a5 {[%emt 0:13:07]} 11. b3 {[%emt 0:06:42]} Re8 {[%emt 0:01:59]} 12. O-O {[%emt 0:01:48]} Kf8 {[%emt 0:16:45]} 13. Ba3+ {[%emt 0:03:34]} Kg8 {[%emt 0:01:05]} 14. Rfe1 {[%emt 0:00:59]} Be6 {[%emt 0:00:36]} 15. Re2 {[%emt 0:07:22]} Na6 {[%emt 0:03:43]} 16. Bd6 {[%emt 0:28:59]} Bxc4 {[%emt 0:18:14]} 17. Rxe8+ {[%emt 0:00:06]} Rxe8 {[%emt 0:00:07]} 18. bxc4 {[%emt 0:00:05]} Re2 {[%emt 0:05:42]} 19. Re1 {[%emt 0:10:16]} Rxe1+ {[%emt 0:01:05]} 20. Nxe1 {[%emt 0:00:05]} f5 {[%emt 0:13:51]} 21. c3 {[%emt 0:10:16]} Bh6 {[%emt 0:01:45]} 22. f4 {[%emt 0:03:26]} Bf8 {[%emt 0:03:12]} 23. Bxf8 {[%emt 0:02:24]} Kxf8 {[%emt 0:00:01]} 24. Nd3 {[%emt 0:00:16]} Ke7 {[%emt 0:00:54]} 25. Kf2 {[%emt 0:00:24]} b6 {[%emt 0:07:33]} 26. Ke3 {[%emt 0:05:38]} Kd6 {[%emt 0:01:38]} 27. Nc1 {[%emt 0:02:11]} c5 {[%emt 0:03:32]} 28. Kd3 {[%emt 0:02:15]} Kd7 {[%emt 0:00:42]} 29. Nb3 {[%emt 0:01:18]} Kd6 {[%emt 0:00:48]} 30. g3 {[%emt 0:00:13]} Kd7 {[%emt 0:01:39]} 31. Nd2 {[%emt 0:00:16]} Ke6 {[%emt 0:01:36]} 32. Nf1 {[%emt 0:01:41]} Kd6 {[%emt 0:01:50]} 33. Nd2 {[%emt 0:03:12]} Ke6 {[%emt 0:00:12]} 34. Nf1 {[%emt 0:02:36]} 1/2-1/2

[Event "Festival Groningen-A 2024"]
[Site "Groningen"]
[Date "2024.12.24"]
[Round "4.11"]
[White "Cernov, Henrik"]
[Black "Laxman, R.R."]
[Result "1/2-1/2"]
[ECO "C68"]
[WhiteElo "2187"]
[BlackElo "2310"]
[Annotator "RC"]
[PlyCount "69"]
[EventDate "2024.12.21"]
[EventType "swiss"]
[EventCountry "NED"]
[SourceTitle "playchess.com"]
[Source "ChessBase"]
[SourceQuality "1"]
[TimeControl "40/5400+30:1800+30"]

1. e4 {[%emt 0:00:01]} e5 {[%emt 0:00:30]} 2. Nf3 {[%emt 0:00:04]} Nc6 {[%emt 0:00:02]} 3. Bb5 {[%emt 0:00:06]} a6 {[%emt 0:00:10]} 4. Bxc6 {[%emt 0:00:04]} dxc6 {[%emt 0:00:06]} 5. Nc3 {[%emt 0:00:04]} f6 {[%emt 0:01:49]} 6. d4 {[%emt 0:00:02]} exd4 {[%emt 0:00:06]} 7. Qxd4 {[%emt 0:00:05]} Qxd4 {[%emt 0:00:14]} 8. Nxd4 {[%emt 0:00:03]} Bd7 {[%emt 0:01:22]} 9. f3 {[%emt 0:00:04]} O-O-O {[%emt 0:00:13]} 10. Kf2 {[%emt 0:00:11]} Ne7 {[%emt 0:00:40]} 11. Be3 {[%emt 0:00:31]} Ng6 {[%emt 0:00:09]} 12. h4 {[%emt 0:01:10]} Ne5 {[%emt 0:00:56]} 13. b3 {[%emt 0:00:54]} h5 {[%emt 0:00:51]} 14. Rad1 {[%emt 0:00:22]} g6 {[%emt 0:01:45]} 15. Nde2 {[%emt 0:05:53]} Bb4 {[%emt 0:03:18]} 16. Nb1 {[%emt 0:20:09]} Be6 {[%emt 0:00:42]} 17. Nf4 {[%emt 0:02:43]} Bf7 {[%emt 0:02:02]} 18. Ke2 {[%emt 0:04:40]} Bd6 {[%emt 0:08:27]} 19. Nc3 {[%emt 0:07:06]} Rde8 {[%emt 0:01:33]} 20. Kf2 {[%emt 0:02:25]} b5 {[%emt 0:00:36]} 21. Nce2 {[%emt 0:01:53]} Kb7 {[%emt 0:00:28]} 22. Nd3 {[%emt 0:02:13]} Nxd3+ {[%emt 0:00:32]} 23. cxd3 {[%emt 0:03:48]} Rd8 {[%emt 0:01:00]} 24. d4 {[%emt 0:01:41]} a5 {[%emt 0:00:22]} 25. Rc1 {[%emt 0:01:33]} a4 {[%emt 0:01:05]} 26. bxa4 {[%emt 0:00:38]} b4 {[%emt 0:02:56]} 27. Rc2 {[%emt 0:05:14]} Ra8 {[%emt 0:02:52]} 28. Rb1 {[%emt 0:05:36]} Rxa4 {[%emt 0:00:13]} 29. Nc3 {[%emt 0:04:08]} Ra6 {[%emt 0:00:48]} 30. e5 {[%emt 0:00:56]} fxe5 {[%emt 0:00:04]} 31. dxe5 {[%emt 0:00:00]} Be7 {[%emt 0:00:23]} 32. Bg5 {[%emt 0:01:57]} Bc5+ {[%emt 0:00:12]} 33. Be3 {[%emt 0:00:28]} Be7 {[%emt 0:05:10]} 34. Bg5 {[%emt 0:00:05]} Bc5+ {[%emt 0:00:54]} 35. Be3 {[%emt 0:00:01]} 1/2-1/2